[Event "Titled Tuesday Blitz June 28 Early 2022"]
[White "Dixit, Arun"]
[Black "Mosutha, Thuso"]
[WhiteFideId "30937671"]
[BlackFideId "11302550"]
[WhiteElo "2387"]
[BlackElo "2028"]
[Result "1-0"]
[Round "06"]
[TimeControl "180+1"]
[Date "2022.06.28"]
[WhiteClock "0:02:25"]
[BlackClock "0:02:31"]

1. d4 {[%clk 0:03:00]}  Nf6 {[%clk 0:02:57]} 2. c4 {[%clk 0:03:00]}  g6 {[%clk 0:02:57]} 3. Nc3 {[%clk 0:03:00]}  Bg7 {[%clk 0:02:58]} 4. e4 {[%clk 0:03:00]}  d6 {[%clk 0:02:58]} 5. f4 {[%clk 0:03:00]}  O-O {[%clk 0:02:58]} 6. Nf3 {[%clk 0:03:00]}  c5 {[%clk 0:02:58]} 7. d5 {[%clk 0:03:00]}  e6 {[%clk 0:02:57]} 8. dxe6 {[%clk 0:03:01]}  Bxe6 {[%clk 0:02:56]} 9. Bd3 {[%clk 0:03:02]}  Nc6 {[%clk 0:02:56]} 10. f5 {[%clk 0:03:02]}  Bc8 {[%clk 0:02:55]} 11. O-O {[%clk 0:03:01]}  Re8 {[%clk 0:02:54]} 12. Bg5 {[%clk 0:03:00]}  Ne5 {[%clk 0:02:49]} 13. Nxe5 {[%clk 0:02:59]}  Rxe5 {[%clk 0:02:50]} 14. Nd5 {[%clk 0:02:59]}  h6 {[%clk 0:02:45]} 15. Bxf6 {[%clk 0:02:53]}  Bxf6 {[%clk 0:02:46]} 16. fxg6 {[%clk 0:02:54]}  Rxd5 {[%clk 0:02:39]} 17. gxf7+ {[%clk 0:02:49]}  Kxf7 {[%clk 0:02:39]} 18. exd5 {[%clk 0:02:48]}  Qg8 {[%clk 0:02:34]} 19. Qh5+ {[%clk 0:02:46]}  Ke7 {[%clk 0:02:35]} 20. Rae1+ {[%clk 0:02:35]}  Be5 {[%clk 0:02:35]} 21. Rxe5+ {[%clk 0:02:30]}  dxe5 {[%clk 0:02:35]} 22. Qxe5+ {[%clk 0:02:31]}  Kd8 {[%clk 0:02:30]} 23. Qd6+ {[%clk 0:02:27]}  Ke8 {[%clk 0:02:31]} 24. Bg6+ {[%clk 0:02:25]} 1-0


[Site "https://www.chess.com"]

[Event "Titled Tuesday Blitz June 28 Early 2022"]
[White "Djabri,Massinas"]
[Black "Piesik, Piotr"]
[WhiteFideId "7905726"]
[BlackFideId "1136194"]
[WhiteElo "1941"]
[BlackElo "2247"]
[Result "0-1"]
[Round "06"]
[TimeControl "180+1"]
[Date "2022.06.28"]
[WhiteClock "0:00:02"]
[BlackClock "0:00:55"]

1. d4 {[%clk 0:03:00]}  c5 {[%clk 0:02:59]} 2. d5 {[%clk 0:03:00]}  e5 {[%clk 0:02:59]} 3. c4 {[%clk 0:03:00]}  d6 {[%clk 0:03:00]} 4. Nc3 {[%clk 0:03:01]}  Be7 {[%clk 0:03:00]} 5. g3 {[%clk 0:02:49]}  Bg5 {[%clk 0:03:00]} 6. f4 {[%clk 0:02:49]}  exf4 {[%clk 0:02:58]} 7. Nf3 {[%clk 0:02:50]}  Bf6 {[%clk 0:02:46]} 8. gxf4 {[%clk 0:02:34]}  Bxc3+ {[%clk 0:02:44]} 9. bxc3 {[%clk 0:02:33]}  f5 {[%clk 0:02:44]} 10. e3 {[%clk 0:02:28]}  Nf6 {[%clk 0:02:44]} 11. Bd3 {[%clk 0:02:28]}  Qe7 {[%clk 0:02:39]} 12. Rg1 {[%clk 0:02:27]}  O-O {[%clk 0:02:37]} 13. Qc2 {[%clk 0:02:28]}  Ng4 {[%clk 0:02:32]} 14. Qe2 {[%clk 0:02:08]}  g6 {[%clk 0:02:27]} 15. h3 {[%clk 0:02:07]}  Nf6 {[%clk 0:02:25]} 16. Qc2 {[%clk 0:02:07]}  Re8 {[%clk 0:02:24]} 17. Bd2 {[%clk 0:02:07]}  Ne4 {[%clk 0:02:23]} 18. O-O-O {[%clk 0:02:04]}  Nd7 {[%clk 0:02:22]} 19. Ng5 {[%clk 0:02:00]}  Ndf6 {[%clk 0:02:19]} 20. Kb1 {[%clk 0:01:54]}  Kg7 {[%clk 0:02:08]} 21. Bc1 {[%clk 0:01:46]}  h6 {[%clk 0:02:06]} 22. Nf3 {[%clk 0:01:44]}  Kh7 {[%clk 0:02:01]} 23. Nh4 {[%clk 0:01:44]}  Rg8 {[%clk 0:01:59]} 24. Ka1 {[%clk 0:01:43]}  Bd7 {[%clk 0:01:59]} 25. Rg2 {[%clk 0:01:40]}  Rg7 {[%clk 0:01:56]} 26. Rdg1 {[%clk 0:01:40]}  Rag8 {[%clk 0:01:56]} 27. Nf3 {[%clk 0:01:31]}  a6 {[%clk 0:01:51]} 28. h4 {[%clk 0:01:29]}  b5 {[%clk 0:01:47]} 29. h5 {[%clk 0:01:29]}  Nxh5 {[%clk 0:01:46]} 30. Rh2 {[%clk 0:01:22]}  bxc4 {[%clk 0:01:41]} 31. Bxc4 {[%clk 0:01:22]}  Bb5 {[%clk 0:01:41]} 32. Bxb5 {[%clk 0:01:04]}  axb5 {[%clk 0:01:42]} 33. Rgh1 {[%clk 0:01:04]}  Nef6 {[%clk 0:01:39]} 34. Nh4 {[%clk 0:00:57]}  Qe4 {[%clk 0:01:35]} 35. Qe2 {[%clk 0:00:56]}  Ng4 {[%clk 0:01:32]} 36. Rg2 {[%clk 0:00:46]}  Nhf6 {[%clk 0:01:29]} 37. c4 {[%clk 0:00:37]}  bxc4 {[%clk 0:01:22]} 38. Bb2 {[%clk 0:00:36]}  Nxd5 {[%clk 0:01:21]} 39. Bxg7 {[%clk 0:00:23]}  Rxg7 {[%clk 0:01:22]} 40. Nf3 {[%clk 0:00:22]}  Qd3 {[%clk 0:01:14]} 41. Qxd3 {[%clk 0:00:11]}  cxd3 {[%clk 0:01:15]} 42. Nd2 {[%clk 0:00:10]}  Ngxe3 {[%clk 0:01:11]} 43. Rg3 {[%clk 0:00:10]}  Ra7 {[%clk 0:01:05]} 44. Rhh3 {[%clk 0:00:05]}  Nc2+ {[%clk 0:00:59]} 45. Kb2 {[%clk 0:00:05]}  Rb7+ {[%clk 0:00:59]} 46. Kc1 {[%clk 0:00:05]}  Nxf4 {[%clk 0:00:56]} 47. Rh4 {[%clk 0:00:02]}  Ne2+ {[%clk 0:00:55]} 0-1


[Site "https://www.chess.com"]

[Event "Titled Tuesday Blitz June 28 Early 2022"]
[White "Dudzinski, Pawel"]
[Black "Royal, Shreyas"]
[WhiteFideId "1117890"]
[BlackFideId "448869"]
[WhiteElo "2011"]
[BlackElo "1986"]
[Result "1-0"]
[Round "06"]
[TimeControl "180+1"]
[Date "2022.06.28"]
[WhiteClock "0:00:02"]
[BlackClock "0:02:17"]

1. e4 {[%clk 0:03:00]}  e5 {[%clk 0:03:00]} 2. Nc3 {[%clk 0:02:59]}  Nc6 {[%clk 0:02:59]} 3. g3 {[%clk 0:02:59]}  Nf6 {[%clk 0:02:58]} 4. Bg2 {[%clk 0:01:48]}  g6 {[%clk 0:02:57]} 5. Nge2 {[%clk 0:01:47]}  Bg7 {[%clk 0:02:58]} 6. O-O {[%clk 0:01:47]}  O-O {[%clk 0:02:58]} 7. f4 {[%clk 0:01:44]}  d6 {[%clk 0:02:53]} 8. d3 {[%clk 0:01:40]}  Bg4 {[%clk 0:02:50]} 9. h3 {[%clk 0:01:39]}  Bd7 {[%clk 0:02:48]} 10. f5 {[%clk 0:01:36]}  Nd4 {[%clk 0:02:48]} 11. g4 {[%clk 0:01:28]}  h6 {[%clk 0:02:48]} 12. Nxd4 {[%clk 0:01:23]}  exd4 {[%clk 0:02:48]} 13. Ne2 {[%clk 0:01:24]}  c5 {[%clk 0:02:48]} 14. Ng3 {[%clk 0:01:10]}  Bc6 {[%clk 0:02:46]} 15. g5 {[%clk 0:00:57]}  hxg5 {[%clk 0:02:46]} 16. Bxg5 {[%clk 0:00:58]}  Qe8 {[%clk 0:02:46]} 17. Bxf6 {[%clk 0:00:55]}  Bxf6 {[%clk 0:02:47]} 18. Qg4 {[%clk 0:00:53]}  Bd7 {[%clk 0:02:45]} 19. Nh5 {[%clk 0:00:46]}  Qe5 {[%clk 0:02:38]} 20. Nxf6+ {[%clk 0:00:40]}  Qxf6 {[%clk 0:02:39]} 21. Qg3 {[%clk 0:00:41]}  Kg7 {[%clk 0:02:35]} 22. fxg6 {[%clk 0:00:37]}  Qxg6 {[%clk 0:02:36]} 23. Rf3 {[%clk 0:00:29]}  Rac8 {[%clk 0:02:34]} 24. Qf4 {[%clk 0:00:25]}  Qh6 {[%clk 0:02:27]} 25. Rg3+ {[%clk 0:00:21]}  Kh7 {[%clk 0:02:28]} 26. Qxh6+ {[%clk 0:00:15]}  Kxh6 {[%clk 0:02:29]} 27. Rf1 {[%clk 0:00:16]}  Rg8 {[%clk 0:02:24]} 28. Rf6+ {[%clk 0:00:09]}  Kh5 {[%clk 0:02:22]} 29. Kh2 {[%clk 0:00:05]}  Be6 {[%clk 0:02:15]} 30. Bf3+ {[%clk 0:00:03]}  Bg4 {[%clk 0:02:16]} 31. Rxg4 {[%clk 0:00:02]}  Rxg4 {[%clk 0:02:16]} 32. hxg4+ {[%clk 0:00:03]}  Kg5 {[%clk 0:02:17]} 33. Rf5+ {[%clk 0:00:03]}  Kh4 {[%clk 0:02:17]} 34. Rh5# {[%clk 0:00:02]} 1-0


[Site "https://www.chess.com"]

[Event "Titled Tuesday Blitz June 28 Early 2022"]
[White "Dwilewicz, Katarzyna"]
[Black "Mendez Fortes, Eduardo Jesus"]
[WhiteFideId "1148486"]
[BlackFideId "3502376"]
[WhiteElo "1907"]
[BlackElo "2321"]
[Result "1-0"]
[Round "06"]
[TimeControl "180+1"]
[Date "2022.06.28"]
[WhiteClock "0:02:50"]
[BlackClock "0:02:40"]

1. e4 {[%clk 0:03:00]}  e5 {[%clk 0:02:54]} 2. Nf3 {[%clk 0:02:59]}  Nc6 {[%clk 0:02:53]} 3. Nc3 {[%clk 0:02:59]}  Nf6 {[%clk 0:02:53]} 4. Bb5 {[%clk 0:02:59]}  Bb4 {[%clk 0:02:52]} 5. O-O {[%clk 0:02:59]}  O-O {[%clk 0:02:51]} 6. d3 {[%clk 0:02:58]}  d6 {[%clk 0:02:51]} 7. Bg5 {[%clk 0:02:53]}  h6 {[%clk 0:02:51]} 8. Bxf6 {[%clk 0:02:51]}  Qxf6 {[%clk 0:02:47]} 9. Nd5 {[%clk 0:02:51]}  Qg6 {[%clk 0:02:40]} 10. Bxc6 {[%clk 0:02:51]}  bxc6 {[%clk 0:02:40]} 11. Ne7+ {[%clk 0:02:50]} 1-0


[Site "https://www.chess.com"]

[Event "Titled Tuesday Blitz June 28 Early 2022"]
[White "Elgersma, Onno"]
[Black "Araujo Sanchez, Josue"]
[WhiteFideId "1053531"]
[BlackFideId "6416896"]
[WhiteElo "2304"]
[BlackElo "2339"]
[Result "0-1"]
[Round "06"]
[TimeControl "180+1"]
[Date "2022.06.28"]
[WhiteClock "0:00:12"]
[BlackClock "0:00:50"]

1. e4 {[%clk 0:03:00]}  c5 {[%clk 0:02:59]} 2. Nf3 {[%clk 0:02:58]}  d6 {[%clk 0:02:59]} 3. d4 {[%clk 0:02:45]}  cxd4 {[%clk 0:03:00]} 4. Nxd4 {[%clk 0:02:45]}  Nf6 {[%clk 0:03:00]} 5. Nc3 {[%clk 0:02:45]}  a6 {[%clk 0:03:00]} 6. a3 {[%clk 0:02:35]}  g6 {[%clk 0:02:55]} 7. Be2 {[%clk 0:02:22]}  Bg7 {[%clk 0:02:55]} 8. Be3 {[%clk 0:02:22]}  O-O {[%clk 0:02:54]} 9. Qd2 {[%clk 0:02:23]}  Nc6 {[%clk 0:02:53]} 10. h4 {[%clk 0:02:21]}  Nxd4 {[%clk 0:02:54]} 11. Bxd4 {[%clk 0:02:22]}  Be6 {[%clk 0:02:53]} 12. O-O-O {[%clk 0:02:22]}  Qa5 {[%clk 0:02:49]} 13. Kb1 {[%clk 0:02:17]}  Rfc8 {[%clk 0:02:49]} 14. h5 {[%clk 0:02:15]}  Rc7 {[%clk 0:02:42]} 15. hxg6 {[%clk 0:02:09]}  hxg6 {[%clk 0:02:43]} 16. g4 {[%clk 0:02:05]}  Rac8 {[%clk 0:02:39]} 17. g5 {[%clk 0:02:06]}  Rxc3 {[%clk 0:02:34]} 18. gxf6 {[%clk 0:01:39]}  Rxa3 {[%clk 0:02:12]} 19. Qxa5 {[%clk 0:01:30]}  Rxa5 {[%clk 0:02:11]} 20. fxg7 {[%clk 0:01:26]}  f6 {[%clk 0:02:11]} 21. Rh8+ {[%clk 0:01:20]}  Kxg7 {[%clk 0:02:11]} 22. Rxc8 {[%clk 0:01:21]}  Bxc8 {[%clk 0:02:11]} 23. Rg1 {[%clk 0:01:18]}  Ra4 {[%clk 0:02:05]} 24. Bc3 {[%clk 0:00:57]}  Rxe4 {[%clk 0:02:03]} 25. Bd3 {[%clk 0:00:58]}  Rg4 {[%clk 0:02:03]} 26. Rxg4 {[%clk 0:00:58]}  Bxg4 {[%clk 0:02:03]} 27. Be4 {[%clk 0:00:57]}  Bc8 {[%clk 0:02:03]} 28. Kc1 {[%clk 0:00:57]}  Kf7 {[%clk 0:02:03]} 29. Kd2 {[%clk 0:00:57]}  f5 {[%clk 0:01:57]} 30. Bg2 {[%clk 0:00:56]}  g5 {[%clk 0:01:56]} 31. Ke2 {[%clk 0:00:50]}  e6 {[%clk 0:01:54]} 32. Ke3 {[%clk 0:00:49]}  Ke7 {[%clk 0:01:53]} 33. Bb4 {[%clk 0:00:36]}  b6 {[%clk 0:01:48]} 34. Bc3 {[%clk 0:00:35]}  Bd7 {[%clk 0:01:42]} 35. Bd4 {[%clk 0:00:34]}  b5 {[%clk 0:01:41]} 36. Ba7 {[%clk 0:00:35]}  a5 {[%clk 0:01:41]} 37. c3 {[%clk 0:00:33]}  e5 {[%clk 0:01:36]} 38. Bf1 {[%clk 0:00:31]}  g4 {[%clk 0:01:31]} 39. Bb6 {[%clk 0:00:31]}  a4 {[%clk 0:01:31]} 40. Bg2 {[%clk 0:00:31]}  Ke6 {[%clk 0:01:30]} 41. f4 {[%clk 0:00:27]}  gxf3 {[%clk 0:01:27]} 42. Bxf3 {[%clk 0:00:27]}  d5 {[%clk 0:01:28]} 43. Bg2 {[%clk 0:00:27]}  f4+ {[%clk 0:01:25]} 44. Kf3 {[%clk 0:00:26]}  Kd6 {[%clk 0:01:26]} 45. Bf1 {[%clk 0:00:25]}  Kc6 {[%clk 0:01:25]} 46. Ba7 {[%clk 0:00:24]}  Kd6 {[%clk 0:01:21]} 47. Bb8+ {[%clk 0:00:25]}  Ke6 {[%clk 0:01:16]} 48. Bh3+ {[%clk 0:00:25]}  Ke7 {[%clk 0:01:16]} 49. Bxd7 {[%clk 0:00:25]}  e4+ {[%clk 0:01:13]} 50. Kxf4 {[%clk 0:00:21]}  Kxd7 {[%clk 0:01:14]} 51. Ba7 {[%clk 0:00:20]}  Ke6 {[%clk 0:01:08]} 52. Bc5 {[%clk 0:00:19]}  Kd7 {[%clk 0:01:07]} 53. Ke5 {[%clk 0:00:17]}  Kc6 {[%clk 0:01:08]} 54. Be3 {[%clk 0:00:17]}  b4 {[%clk 0:01:07]} 55. Kd4 {[%clk 0:00:16]}  b3 {[%clk 0:00:51]} 56. Bc1 {[%clk 0:00:14]}  Kb5 {[%clk 0:00:51]} 57. Kxd5 {[%clk 0:00:12]}  e3 {[%clk 0:00:51]} 58. Bxe3 {[%clk 0:00:12]}  a3 {[%clk 0:00:51]} 59. c4+ {[%clk 0:00:12]}  Ka4 {[%clk 0:00:50]} 0-1


[Site "https://www.chess.com"]

[Event "Titled Tuesday Blitz June 28 Early 2022"]
[White "Fedoseev, Vladimir"]
[Black "Van Foreest, Jorden"]
[WhiteFideId "24130737"]
[BlackFideId "1039784"]
[WhiteElo "3056"]
[BlackElo "2957"]
[Result "1-0"]
[Round "06"]
[TimeControl "180+1"]
[Date "2022.06.28"]
[WhiteClock "0:00:08"]
[BlackClock "0:00:01"]

1. e4 {[%clk 0:03:00]}  c6 {[%clk 0:02:59]} 2. d4 {[%clk 0:02:59]}  d5 {[%clk 0:03:00]} 3. e5 {[%clk 0:02:58]}  Bf5 {[%clk 0:03:00]} 4. Nf3 {[%clk 0:02:58]}  e6 {[%clk 0:02:59]} 5. Be2 {[%clk 0:02:58]}  Ne7 {[%clk 0:02:55]} 6. O-O {[%clk 0:02:57]}  h6 {[%clk 0:02:54]} 7. Nbd2 {[%clk 0:02:55]}  Bh7 {[%clk 0:02:54]} 8. Nb3 {[%clk 0:02:54]}  a5 {[%clk 0:02:48]} 9. a4 {[%clk 0:02:53]}  Nd7 {[%clk 0:02:48]} 10. Bd2 {[%clk 0:02:53]}  Nf5 {[%clk 0:02:43]} 11. Bd3 {[%clk 0:02:49]}  Be7 {[%clk 0:02:36]} 12. g4 {[%clk 0:02:46]}  Nh4 {[%clk 0:02:35]} 13. Bxh7 {[%clk 0:02:46]}  Nxf3+ {[%clk 0:02:35]} 14. Qxf3 {[%clk 0:02:45]}  Rxh7 {[%clk 0:02:36]} 15. Qd3 {[%clk 0:02:45]}  Rh8 {[%clk 0:02:34]} 16. f4 {[%clk 0:02:45]}  c5 {[%clk 0:02:22]} 17. dxc5 {[%clk 0:02:19]}  Nxc5 {[%clk 0:02:23]} 18. Nxc5 {[%clk 0:02:09]}  Bxc5+ {[%clk 0:02:24]} 19. Kg2 {[%clk 0:02:08]}  Qb6 {[%clk 0:02:22]} 20. f5 {[%clk 0:02:05]}  O-O-O {[%clk 0:01:54]} 21. Qb5 {[%clk 0:01:48]}  Qc7 {[%clk 0:00:52]} 22. fxe6 {[%clk 0:01:36]}  fxe6 {[%clk 0:00:49]} 23. Qxa5 {[%clk 0:01:28]}  Bb6 {[%clk 0:00:37]} 24. Qa8+ {[%clk 0:01:25]}  Kd7 {[%clk 0:00:25]} 25. Rf7+ {[%clk 0:01:22]}  Kc6 {[%clk 0:00:26]} 26. Rxc7+ {[%clk 0:01:22]}  Bxc7 {[%clk 0:00:21]} 27. Qxd8 {[%clk 0:01:13]}  Rxd8 {[%clk 0:00:20]} 28. b4 {[%clk 0:01:09]}  d4 {[%clk 0:00:19]} 29. b5+ {[%clk 0:01:01]}  Kc5 {[%clk 0:00:19]} 30. Rf1 {[%clk 0:00:52]}  Bxe5 {[%clk 0:00:16]} 31. Rf7 {[%clk 0:00:49]}  Ra8 {[%clk 0:00:13]} 32. a5 {[%clk 0:00:45]}  Kxb5 {[%clk 0:00:12]} 33. Rxb7+ {[%clk 0:00:45]}  Kc5 {[%clk 0:00:11]} 34. Kf3 {[%clk 0:00:42]}  Kc6 {[%clk 0:00:04]} 35. Re7 {[%clk 0:00:38]}  Bxh2 {[%clk 0:00:03]} 36. Rxg7 {[%clk 0:00:34]}  Kd5 {[%clk 0:00:03]} 37. Rd7+ {[%clk 0:00:33]}  Kc6 {[%clk 0:00:03]} 38. Rxd4 {[%clk 0:00:31]}  Bc7 {[%clk 0:00:04]} 39. Rc4+ {[%clk 0:00:30]}  Kb7 {[%clk 0:00:04]} 40. Rc5 {[%clk 0:00:29]}  Bd6 {[%clk 0:00:04]} 41. Rh5 {[%clk 0:00:23]}  Rf8+ {[%clk 0:00:05]} 42. Ke2 {[%clk 0:00:22]}  Rg8 {[%clk 0:00:04]} 43. Rxh6 {[%clk 0:00:15]}  Rxg4 {[%clk 0:00:05]} 44. Rxe6 {[%clk 0:00:16]}  Bc5 {[%clk 0:00:05]} 45. Kd3 {[%clk 0:00:13]}  Rd4+ {[%clk 0:00:05]} 46. Kc3 {[%clk 0:00:13]}  Rd7 {[%clk 0:00:04]} 47. Bf4 {[%clk 0:00:10]}  Ka7 {[%clk 0:00:03]} 48. Kc4 {[%clk 0:00:10]}  Rd4+ {[%clk 0:00:03]} 49. Kxc5 {[%clk 0:00:11]}  Rxf4 {[%clk 0:00:04]} 50. c4 {[%clk 0:00:11]}  Rf1 {[%clk 0:00:03]} 51. Kc6 {[%clk 0:00:10]}  Ka6 {[%clk 0:00:02]} 52. c5 {[%clk 0:00:08]}  Rh1 {[%clk 0:00:03]} 53. Kd7+ {[%clk 0:00:07]}  Kxa5 {[%clk 0:00:01]} 54. c6 {[%clk 0:00:08]}  Rh7+ {[%clk 0:00:01]} 55. Re7 {[%clk 0:00:07]}  Rh2 {[%clk 0:00:01]} 56. c7 {[%clk 0:00:08]} 1-0


[Site "https://www.chess.com"]

[Event "Titled Tuesday Blitz June 28 Early 2022"]
[White "Ferreira, Vitor Hugo Vieira"]
[Black "Ocelak, Jakub"]
[WhiteFideId "2119765"]
[BlackFideId "23707933"]
[WhiteElo "2165"]
[BlackElo "2048"]
[Result "1-0"]
[Round "06"]
[TimeControl "180+1"]
[Date "2022.06.28"]
[WhiteClock "0:00:59"]
[BlackClock "0:00:04"]

1. d4 {[%clk 0:03:00]}  Nf6 {[%clk 0:02:59]} 2. c4 {[%clk 0:03:00]}  g6 {[%clk 0:02:59]} 3. Nc3 {[%clk 0:03:00]}  Bg7 {[%clk 0:02:59]} 4. e4 {[%clk 0:03:00]}  O-O {[%clk 0:03:00]} 5. f3 {[%clk 0:02:59]}  d6 {[%clk 0:02:59]} 6. Be3 {[%clk 0:03:00]}  c5 {[%clk 0:02:59]} 7. Nge2 {[%clk 0:02:59]}  Nc6 {[%clk 0:02:58]} 8. dxc5 {[%clk 0:02:59]}  dxc5 {[%clk 0:02:57]} 9. Qxd8 {[%clk 0:02:59]}  Rxd8 {[%clk 0:02:57]} 10. Bxc5 {[%clk 0:02:59]}  Be6 {[%clk 0:01:50]} 11. Nf4 {[%clk 0:02:59]}  Nd7 {[%clk 0:01:49]} 12. Nxe6 {[%clk 0:02:57]}  fxe6 {[%clk 0:01:49]} 13. Be3 {[%clk 0:02:53]}  Nd4 {[%clk 0:01:44]} 14. Rc1 {[%clk 0:02:51]}  Ne5 {[%clk 0:01:40]} 15. b3 {[%clk 0:02:44]}  a6 {[%clk 0:01:33]} 16. Be2 {[%clk 0:02:35]}  Rac8 {[%clk 0:01:32]} 17. O-O {[%clk 0:02:35]}  b5 {[%clk 0:01:31]} 18. Bxd4 {[%clk 0:02:29]}  Rxd4 {[%clk 0:01:32]} 19. cxb5 {[%clk 0:02:29]}  axb5 {[%clk 0:01:20]} 20. Bxb5 {[%clk 0:02:11]}  Rd2 {[%clk 0:01:15]} 21. Rf2 {[%clk 0:02:08]}  Rxf2 {[%clk 0:00:46]} 22. Kxf2 {[%clk 0:02:07]}  Nxf3 {[%clk 0:00:46]} 23. Bd7 {[%clk 0:01:54]}  Rxc3 {[%clk 0:00:32]} 24. Bxe6+ {[%clk 0:01:53]}  Kf8 {[%clk 0:00:33]} 25. Rxc3 {[%clk 0:01:53]}  Bxc3 {[%clk 0:00:33]} 26. gxf3 {[%clk 0:01:45]}  Ke8 {[%clk 0:00:34]} 27. Ke3 {[%clk 0:01:45]}  g5 {[%clk 0:00:33]} 28. f4 {[%clk 0:01:42]}  gxf4+ {[%clk 0:00:31]} 29. Kxf4 {[%clk 0:01:42]}  Kd8 {[%clk 0:00:31]} 30. Kg5 {[%clk 0:01:37]}  Bd2+ {[%clk 0:00:27]} 31. Kh5 {[%clk 0:01:30]}  Kc7 {[%clk 0:00:26]} 32. Bg8 {[%clk 0:01:30]}  h6 {[%clk 0:00:26]} 33. Kg6 {[%clk 0:01:30]}  Kd6 {[%clk 0:00:24]} 34. Bd5 {[%clk 0:01:27]}  Ke5 {[%clk 0:00:23]} 35. Kf7 {[%clk 0:01:26]}  e6 {[%clk 0:00:20]} 36. Bxe6 {[%clk 0:01:25]}  Kxe4 {[%clk 0:00:20]} 37. h4 {[%clk 0:01:21]}  Kf4 {[%clk 0:00:13]} 38. h5 {[%clk 0:01:19]}  Kg5 {[%clk 0:00:14]} 39. a3 {[%clk 0:01:07]}  Bc1 {[%clk 0:00:12]} 40. a4 {[%clk 0:01:05]}  Bd2 {[%clk 0:00:12]} 41. Ke7 {[%clk 0:01:05]}  Kxh5 {[%clk 0:00:12]} 42. Kd6 {[%clk 0:01:05]}  Kg5 {[%clk 0:00:12]} 43. Kc5 {[%clk 0:01:06]}  Kf6 {[%clk 0:00:11]} 44. Bh3 {[%clk 0:01:06]}  Ke7 {[%clk 0:00:11]} 45. b4 {[%clk 0:01:07]}  Kd8 {[%clk 0:00:11]} 46. b5 {[%clk 0:01:06]}  Kc7 {[%clk 0:00:11]} 47. b6+ {[%clk 0:01:04]}  Kb7 {[%clk 0:00:08]} 48. Kb5 {[%clk 0:01:04]}  Be3 {[%clk 0:00:06]} 49. a5 {[%clk 0:01:04]}  Kb8 {[%clk 0:00:04]} 50. a6 {[%clk 0:01:01]}  h5 {[%clk 0:00:03]} 51. a7+ {[%clk 0:01:00]}  Kb7 {[%clk 0:00:03]} 52. Bg2+ {[%clk 0:01:00]}  Kc8 {[%clk 0:00:04]} 53. b7+ {[%clk 0:00:59]} 1-0


[Site "https://www.chess.com"]

[Event "Titled Tuesday Blitz June 28 Early 2022"]
[White "Florescu, Codrut-Constantin"]
[Black "Sargissyan, Sargis"]
[WhiteFideId "1202200"]
[BlackFideId "13303210"]
[WhiteElo "2191"]
[BlackElo "2174"]
[Result "0-1"]
[Round "06"]
[TimeControl "180+1"]
[Date "2022.06.28"]
[WhiteClock "0:01:27"]
[BlackClock "0:02:20"]

1. d4 {[%clk 0:03:00]}  Nf6 {[%clk 0:02:59]} 2. Nf3 {[%clk 0:03:01]}  g6 {[%clk 0:03:00]} 3. c4 {[%clk 0:03:00]}  Bg7 {[%clk 0:03:01]} 4. Nc3 {[%clk 0:03:00]}  d5 {[%clk 0:03:01]} 5. Qb3 {[%clk 0:02:59]}  dxc4 {[%clk 0:02:59]} 6. Qxc4 {[%clk 0:03:00]}  O-O {[%clk 0:02:59]} 7. e4 {[%clk 0:03:00]}  Nc6 {[%clk 0:02:59]} 8. h3 {[%clk 0:02:57]}  e5 {[%clk 0:02:59]} 9. d5 {[%clk 0:02:56]}  Nd4 {[%clk 0:02:59]} 10. Be2 {[%clk 0:02:51]}  Nc2+ {[%clk 0:02:52]} 11. Kf1 {[%clk 0:02:50]}  Nxa1 {[%clk 0:02:53]} 12. Bd1 {[%clk 0:02:42]}  c6 {[%clk 0:02:50]} 13. g4 {[%clk 0:02:25]}  cxd5 {[%clk 0:02:49]} 14. exd5 {[%clk 0:02:24]}  b5 {[%clk 0:02:45]} 15. Qxb5 {[%clk 0:02:15]}  e4 {[%clk 0:02:37]} 16. Ng5 {[%clk 0:02:03]}  Rb8 {[%clk 0:02:34]} 17. Qc4 {[%clk 0:02:00]}  Bb7 {[%clk 0:02:34]} 18. Bf4 {[%clk 0:01:51]}  Rc8 {[%clk 0:02:32]} 19. Qb4 {[%clk 0:01:38]}  Nxd5 {[%clk 0:02:32]} 20. Nxd5 {[%clk 0:01:34]}  Qxd5 {[%clk 0:02:29]} 21. Be3 {[%clk 0:01:31]}  Qxd1+ {[%clk 0:02:28]} 22. Kg2 {[%clk 0:01:32]}  Qd5 {[%clk 0:02:24]} 23. Rxa1 {[%clk 0:01:27]}  h6 {[%clk 0:02:23]} 24. h4 {[%clk 0:01:26]}  hxg5 {[%clk 0:02:23]} 25. hxg5 {[%clk 0:01:27]}  Qe6 {[%clk 0:02:20]} 0-1


[Site "https://www.chess.com"]

[Event "Titled Tuesday Blitz June 28 Early 2022"]
[White "Golubev, Mikhail"]
[Black "Terrieux, Kevin"]
[WhiteFideId "14100983"]
[BlackFideId "622591"]
[WhiteElo "2374"]
[BlackElo "2482"]
[Result "1-0"]
[Round "06"]
[TimeControl "180+1"]
[Date "2022.06.28"]
[WhiteClock "0:00:32"]
[BlackClock "0:00:45"]

1. e4 {[%clk 0:03:00]}  c5 {[%clk 0:02:55]} 2. Nf3 {[%clk 0:03:00]}  e6 {[%clk 0:02:56]} 3. d4 {[%clk 0:03:00]}  cxd4 {[%clk 0:02:57]} 4. Nxd4 {[%clk 0:03:00]}  Nf6 {[%clk 0:02:57]} 5. Nc3 {[%clk 0:02:59]}  Nc6 {[%clk 0:02:56]} 6. a3 {[%clk 0:02:56]}  Qc7 {[%clk 0:02:54]} 7. Be3 {[%clk 0:02:45]}  a6 {[%clk 0:02:52]} 8. f4 {[%clk 0:02:45]}  d6 {[%clk 0:02:48]} 9. Qf3 {[%clk 0:02:44]}  Nd7 {[%clk 0:02:37]} 10. O-O-O {[%clk 0:02:23]}  b5 {[%clk 0:02:35]} 11. e5 {[%clk 0:02:12]}  d5 {[%clk 0:02:14]} 12. Be2 {[%clk 0:01:11]}  Bb7 {[%clk 0:01:51]} 13. f5 {[%clk 0:01:10]}  Ncxe5 {[%clk 0:01:43]} 14. Qh3 {[%clk 0:01:09]}  Bxa3 {[%clk 0:01:38]} 15. fxe6 {[%clk 0:01:03]}  Qxc3 {[%clk 0:00:54]} 16. exf7+ {[%clk 0:00:48]}  Kxf7 {[%clk 0:00:46]} 17. Qe6+ {[%clk 0:00:37]}  Kf8 {[%clk 0:00:46]} 18. Rhf1+ {[%clk 0:00:32]}  Nf6 {[%clk 0:00:45]} 19. Rxf6+ {[%clk 0:00:32]}  gxf6 {[%clk 0:00:45]} 20. Bh6# {[%clk 0:00:32]} 1-0


[Site "https://www.chess.com"]